bitfinex-derivatives/quotes_BTCF0:USTF0_20230402
["timestamp","ask_amount","ask_price","bid_price","bid_amount"]
[1680407460245,0.1262879,28490.0,28488.0,0.05]
[1680407460442,0.1262879,28490.0,28489.0,0.1398]
[1680407462146,0.1282879,28490.0,28489.0,0.1448]
[1680407463051,0.002,28490.0,28489.0,0.5855]
[1680407463546,0.1262879,28493.0,28489.0,0.5805]
[1680407463852,0.002,28490.0,28489.0,0.5166]
[1680407464053,0.003,28490.0,28489.0,0.8861]
[1680407465249,0.1272879,28493.0,28489.0,0.8861]
[1680407465451,0.1272879,28493.0,28492.0,0.3709]
[1680407465649,0.1262879,28493.0,28492.0,0.3709]
[1680407465855,0.1262879,28494.0,28492.0,0.3709]
[1680407466048,0.1262879,28494.0,28493.0,0.1202]
[1680407466943,0.1282879,28494.0,28493.0,0.1252]
[1680407467455,0.002,28494.0,28493.0,0.1252]
[1680407475056,0.3729,28494.0,28493.0,0.005]
[1680407477961,0.0722,28494.0,28493.0,0.005]
[1680407488368,0.05,28493.0,28488.0,0.1196]
[1680407488570,0.3707,28490.0,28488.0,0.0696]
[1680407488767,0.07,28490.0,28488.0,0.0696]
[1680407489972,0.073,28490.0,28488.0,0.0706]
[1680407491564,0.071,28490.0,28488.0,0.0706]
[1680407493374,0.07,28490.0,28488.0,0.0696]
[1680407493567,0.071,28490.0,28488.0,0.0706]
[1680407494975,0.07,28490.0,28488.0,0.0696]
[1680407497768,0.077,28490.0,28488.0,0.0696]
[1680407499568,0.2032879,28490.0,28488.0,0.0696]
[1680407501570,0.1962879,28490.0,28488.0,0.0696]
[1680407503471,0.3007,28489.0,28488.0,0.0696]
[1680407503665,0.4769879,28489.0,28488.0,0.0696]
[1680407504274,0.4269879,28489.0,28488.0,0.0696]
[1680407504669,0.4279879,28489.0,28488.0,0.0706]
[1680407504870,0.4779879,28489.0,28488.0,0.0706]
[1680407505175,0.5481879,28489.0,28488.0,0.0712]
[1680407505378,0.4981879,28489.0,28488.0,0.0712]
[1680407506173,0.4971879,28489.0,28488.0,0.0702]
[1680407506572,0.5041879,28489.0,28488.0,0.0702]
[1680407507078,0.5034879,28489.0,28486.0,0.0701]
[1680407507274,0.0696,28487.0,28486.0,0.0701]
[1680407508981,0.0706,28487.0,28486.0,0.0701]
[1680407511783,0.1414,28487.0,28483.0,0.3709]
[1680407511979,0.07,28484.0,28483.0,0.0702]
[1680407512779,0.073,28484.0,28483.0,0.0702]
[1680407514779,0.071,28484.0,28483.0,0.0702]
[1680407516178,0.0712,28484.0,28481.0,0.1196]
[1680407516373,0.0695,28482.0,28481.0,0.1196]
[1680407516575,0.4409,28482.0,28478.0,0.0705]
[1680407516779,0.0695,28479.0,28478.0,0.0705]
[1680407518984,0.0725,28479.0,28478.0,0.0705]
[1680407526892,0.0725,28479.0,28477.0,0.1202]
[1680407527191,0.0702,28478.0,28477.0,0.0702]
[1680407528281,0.003,28479.0,28477.0,0.1196]
[1680407528480,0.003,28479.0,28478.0,0.1202]
[1680407536992,0.003,28479.0,28478.0,0.1904]
[1680407547009,0.003,28479.0,28478.0,0.1202]
[1680407549505,0.003,28479.0,28478.0,0.12008702]
[1680407552715,0.003,28479.0,28478.0,0.07008702]
[1680407556916,0.003,28479.0,28478.0,0.14008702]
[1680407568321,0.003,28479.0,28478.0,0.19008702]
[1680407573329,0.003,28479.0,28478.0,0.49078702]
[1680407576021,0.003,28479.0,28478.0,0.63158702]
[1680407584733,0.003,28479.0,28478.0,0.58158702]
[1680407586935,0.003,28479.0,28478.0,0.44078702]
[1680407596041,0.003,28479.0,28478.0,0.44062342]
[1680407602543,0.003,28479.0,28478.0,0.13992342]
[1680407602739,0.003,28479.0,28478.0,0.44062342]
[1680407607043,0.003,28479.0,28478.0,0.4407]
[1680407616940,0.003,28479.0,28478.0,0.4409]
[1680407621152,0.4434,28479.0,28474.0,0.0702]
[1680407621455,0.3704,28475.0,28474.0,0.0702]
[1680407623655,0.3734,28475.0,28474.0,0.0742]
[1680407624951,0.0727,28475.0,28474.0,0.0742]
[1680407625556,0.0732,28475.0,28474.0,0.0736]
[1680407636958,0.0732,28475.0,28474.0,0.004]
[1680407643070,0.003,28475.0,28474.0,0.3743]
[1680407644575,0.003,28475.0,28474.0,0.37418961]
[1680407645473,0.003,28475.0,28474.0,0.07348961]
[1680407645673,0.003,28475.0,28474.0,0.37418961]
[1680407651282,0.0702,28480.0,28475.0,0.05]
[1680407651475,0.0702,28480.0,28479.0,0.0702]
[1680407651681,0.0702,28480.0,28479.0,0.1202]
[1680407653875,0.0712,28480.0,28479.0,0.1262]
[1680407654282,0.0712,28480.0,28479.0,0.1272]
[1680407655583,0.0727,28480.0,28479.0,0.1272]
[1680407656483,0.0697,28480.0,28479.0,0.1202]
[1680407656777,0.0727,28480.0,28479.0,0.1272]
[1680407657085,0.0727,28480.0,28479.0,0.1266]
[1680407657086,0.003,28480.0,28479.0,0.1266]
[1680407658780,0.002,28480.0,28479.0,0.1316]
[1680407659573,0.002,28480.0,28479.0,0.1196]
[1680407659777,0.002,28480.0,28479.0,0.1316]
[1680407660278,0.002,28480.0,28479.0,0.0816]
[1680407661388,0.07,28482.0,28479.0,0.0696]
[1680407661584,0.002,28480.0,28479.0,0.012]
[1680407661784,0.002,28480.0,28479.0,0.1322]
[1680407662784,0.002,28480.0,28479.0,0.1202]
[1680407662988,0.002,28480.0,28479.0,0.1322]
[1680407664991,0.002,28480.0,28479.0,0.0822]
[1680407672296,0.002,28480.0,28479.0,0.1322]
[1680407672694,0.002,28480.0,28479.0,0.0822]
[1680407676498,0.0722,28480.0,28479.0,0.012]
[1680407681005,0.002,28480.0,28479.0,0.0816]
[1680407683301,0.0722,28480.0,28477.0,0.0702]
[1680407683505,0.3704,28478.0,28477.0,0.0702]
[1680407684509,0.3734,28478.0,28477.0,0.0712]
[1680407685719,0.3739,28478.0,28477.0,0.071]
[1680407686016,0.3719,28478.0,28477.0,0.071]
[1680407686912,0.3719,28478.0,28477.0,0.001]
[1680407690922,0.0712,28478.0,28477.0,0.001]
[1680407692826,0.0707,28478.0,28477.0,0.0712]
[1680407695028,0.0712,28478.0,28477.0,0.001]
[1680407696524,0.3719,28478.0,28477.0,0.001]
[1680407696728,0.37166095,28478.0,28477.0,0.001]
[1680407701430,0.49794885,28478.0,28477.0,0.001]
[1680407705032,0.79864885,28478.0,28477.0,0.001]
[1680407705632,0.67236095,28478.0,28477.0,0.001]
[1680407706332,0.30146095,28478.0,28477.0,0.0712]
[1680407715040,0.00076095,28478.0,28477.0,0.0712]
[1680407715339,0.30146095,28478.0,28477.0,0.0712]
[1680407717039,0.37166095,28478.0,28477.0,0.001]
[1680407718634,0.07096095,28478.0,28477.0,0.001]
[1680407718831,0.37166095,28478.0,28477.0,0.001]
[1680407719640,0.07096095,28478.0,28477.0,0.001]
[1680407719844,0.37166095,28478.0,28477.0,0.001]
[1680407721335,0.07096095,28478.0,28477.0,0.001]
[1680407722238,0.19724885,28478.0,28477.0,0.001]
[1680407728546,0.07096095,28478.0,28477.0,0.001]
[1680407728740,0.49801776,28478.0,28477.0,0.001]
[1680407736548,0.07096095,28478.0,28477.0,0.001]
[1680407737053,0.07096095,28478.0,28477.0,0.0709]
[1680407737054,0.07046095,28478.0,28477.0,0.0709]
[1680407738950,0.37116095,28478.0,28477.0,0.0709]
[1680407746862,0.07046095,28478.0,28477.0,0.0712]
[1680407749565,0.07046095,28478.0,28477.0,0.07098272]
[1680407756876,0.07076095,28478.0,28477.0,0.07038272]
[1680407767188,0.19716438,28478.0,28477.0,0.12038272]
[1680407770791,0.19716438,28478.0,28477.0,0.07038272]
[1680407771689,0.19716438,28478.0,28477.0,0.12038272]
[1680407772491,0.19716438,28478.0,28477.0,0.07038272]
[1680407775985,0.19686438,28478.0,28477.0,0.07098272]
[1680407776996,0.12716438,28478.0,28477.0,0.07088272]
[1680407796909,0.12716438,28478.0,28477.0,0.19088272]
[1680407797101,0.00076095,28478.0,28477.0,0.49158272]
[1680407799611,0.12640343,28481.0,28478.0,0.05]
[1680407799806,0.12640343,28481.0,28480.0,0.4405]
[1680407801411,0.14140343,28481.0,28480.0,0.4405]
[1680407802305,0.001,28481.0,28480.0,0.4425]
[1680407803006,0.002,28481.0,28480.0,0.4425]
[1680407806717,0.002,28481.0,28480.0,0.1418]
[1680407806917,0.002,28481.0,28480.0,0.4425]
[1680407808617,0.002,28481.0,28480.0,0.1418]
[1680407808813,0.002,28481.0,28480.0,0.4425]
[1680407851346,0.12840343,28481.0,28480.0,0.3729]
[1680407851549,0.56950343,28481.0,28480.0,0.002]
[1680407852846,0.56950343,28481.0,28480.0,0.00179936]
[1680407857054,0.49930343,28481.0,28480.0,0.00179936]
[1680407877270,0.49730343,28481.0,28479.0,0.0702]
[1680407877470,0.42810343,28481.0,28480.0,0.002]
[1680407877765,0.49780343,28481.0,28480.0,0.002]
[1680407883768,0.05,28480.0,28475.0,0.1195]
[1680407883964,0.07,28476.0,28475.0,0.0695]
[1680407885066,0.072,28476.0,28475.0,0.0695]
[1680407885969,0.07,28476.0,28475.0,0.0695]
[1680407886159,0.072,28476.0,28475.0,0.0695]
[1680407886969,0.0722,28476.0,28475.0,0.0695]
[1680407888872,0.0722,28476.0,28475.0,0.1195]
[1680407890160,0.0722,28476.0,28475.0,0.0695]
[1680407899172,0.0722,28476.0,28475.0,0.1195]
[1680407900779,0.0722,28476.0,28475.0,0.0695]
[1680407902378,0.0722,28476.0,28475.0,0.1195]
[1680407906883,0.0717,28476.0,28475.0,0.12]
[1680407912789,0.0717,28476.0,28475.0,0.07]
[1680407913291,0.0717,28476.0,28475.0,0.3707]
[1680407917791,0.002,28476.0,28475.0,0.4409]
[1680407927895,0.002,28476.0,28475.0,0.44068407]
[1680407928096,0.002,28476.0,28475.0,0.74138407]
[1680407929095,0.002,28476.0,28475.0,0.13998407]
[1680407929299,0.002,28476.0,28475.0,0.74138407]
[1680407932294,0.002,28476.0,28475.0,0.13998407]
[1680407932496,0.002,28476.0,28475.0,0.74138407]
[1680407939998,0.002,28476.0,28475.0,0.88178407]
[1680407940299,0.12636623,28480.0,28476.0,0.05]
[1680407940501,0.12636623,28480.0,28479.0,0.4209]
[1680407940900,0.12636623,28481.0,28479.0,0.4209]
[1680407941102,0.12636623,28481.0,28480.0,0.0699]
[1680407941303,0.23811465,28482.0,28480.0,0.1199]
[1680407941603,0.23811465,28482.0,28481.0,0.0696]
[1680407942504,0.25311465,28482.0,28481.0,0.0696]
[1680407943096,0.33564869,28482.0,28481.0,0.0696]
[1680407943399,0.0717,28482.0,28481.0,0.0696]
[1680407944904,0.1980403,28482.0,28481.0,0.0696]
[1680407946403,0.0717,28482.0,28481.0,0.0696]
[1680407951510,0.19798625,28482.0,28481.0,0.0696]
[1680407951812,0.002,28482.0,28481.0,0.0702]
[1680407952011,0.002,28482.0,28481.0,0.1202]
[1680407952903,0.12628625,28483.0,28481.0,0.1202]
[1680407953103,0.12628625,28483.0,28482.0,0.4209]
[1680407953909,0.12628625,28484.0,28482.0,0.4209]
[1680407954113,0.12628625,28484.0,28483.0,0.1202]
[1680407954714,0.12728625,28484.0,28483.0,0.1202]
[1680407956113,0.12728625,28484.0,28483.0,0.1222]
[1680407956315,0.0712,28484.0,28483.0,0.002]
[1680407956507,0.0722,28484.0,28483.0,0.002]
[1680407956708,0.0722,28484.0,28483.0,0.052]
[1680407957012,0.0722,28484.0,28483.0,0.002]
[1680407957710,0.0722,28484.0,28483.0,0.052]
[1680407958918,0.0712,28484.0,28483.0,0.052]
[1680407967123,0.0712,28484.0,28483.0,0.4229]
[1680407968824,0.0712,28484.0,28483.0,0.3729]
[1680407976938,0.001,28484.0,28483.0,0.3729]
[1680407988648,0.001,28484.0,28483.0,0.4431]
[1680407992453,0.001,28484.0,28483.0,0.1424]
[1680407992653,0.001,28484.0,28483.0,0.4431]
[1680407992854,0.001,28484.0,28483.0,0.4931]
[1680407997252,0.001,28484.0,28483.0,0.4431]
[1680408001355,0.001,28484.0,28483.0,0.4931]
[1680408006563,0.19588625,28487.0,28484.0,0.05]
[1680408006760,0.19588625,28487.0,28486.0,0.3703]
[1680408006960,0.12628625,28487.0,28486.0,0.3703]
[1680408007761,0.19598625,28488.0,28486.0,0.3703]
[1680408007962,0.19598625,28488.0,28487.0,0.0702]
[1680408008162,0.19598625,28488.0,28487.0,0.1202]
[1680408008957,0.19798625,28488.0,28487.0,0.1202]
[1680408009458,0.19698625,28488.0,28487.0,0.1232]
[1680408010765,0.19698625,28488.0,28487.0,0.0732]
[1680408016564,0.19728625,28488.0,28487.0,0.0732]
[1680408016866,0.19748625,28488.0,28487.0,0.0726]
[1680408021570,0.19748625,28488.0,28487.0,0.1226]
[1680408022070,0.0712,28488.0,28487.0,0.1226]
[1680408022373,0.0712,28488.0,28487.0,0.0726]
[1680408022671,0.19748625,28488.0,28487.0,0.0726]
[1680408023159,0.19748625,28488.0,28487.0,0.1226]
[1680408023364,0.0712,28488.0,28487.0,0.1226]
[1680408023956,0.0712,28488.0,28487.0,0.0726]
[1680408024157,0.0712,28488.0,28487.0,0.4233]
[1680408024672,0.001,28488.0,28487.0,0.4239]
[1680408027667,0.001,28488.0,28487.0,0.4935]
[1680408031175,0.001,28488.0,28487.0,0.4239]
[1680408036375,0.12628625,28493.0,28488.0,0.05]
[1680408036581,0.12628625,28493.0,28492.0,0.3709]
[1680408037376,0.14828625,28493.0,28492.0,0.3719]
[1680408039078,0.022,28493.0,28492.0,0.3719]
[1680408039278,0.19598625,28495.0,28492.0,0.3709]
[1680408039580,0.19598625,28495.0,28494.0,0.0696]
[1680408040678,0.20498625,28495.0,28494.0,0.0696]
[1680408041079,0.20498625,28495.0,28494.0,0.0706]
[1680408042181,0.0787,28495.0,28494.0,0.0706]
[1680408046583,0.0787,28495.0,28494.0,0.0712]
[1680408046985,0.009,28495.0,28494.0,0.0711]
[1680408051583,0.3794,28495.0,28494.0,0.001]
[1680408051892,0.05,28494.0,28490.0,0.0701]
[1680408052081,0.0702,28491.0,28490.0,0.0701]
[1680408053702,0.0722,28491.0,28490.0,0.0701]
[1680408055401,0.0722,28491.0,28490.0,0.3708]
[1680408061998,0.002,28491.0,28490.0,0.3702]
[1680408062997,0.002,28491.0,28490.0,0.4202]
[1680408067004,0.002,28491.0,28490.0,0.4904]
[1680408069495,0.002,28491.0,28490.0,0.4209]
[1680408074098,0.002,28491.0,28490.0,0.4909]
[1680408076909,0.002,28491.0,28490.0,0.4209]
[1680408078108,0.002,28491.0,28490.0,0.7216]
[1680408086918,0.002,28491.0,28490.0,0.7916]
[1680408097129,0.002,28491.0,28490.0,0.7214]
[1680408099323,0.002,28491.0,28490.0,0.72117108]
[1680408116444,0.002,28491.0,28490.0,0.6714]
[1680408124338,0.12628625,28494.0,28491.0,0.05]
[1680408124542,0.12628625,28494.0,28493.0,0.3702]
[1680408124742,0.12628625,28494.0,28493.0,0.4202]
[1680408125450,0.12628625,28494.0,28493.0,0.3702]
[1680408126154,0.12828625,28494.0,28493.0,0.3702]
[1680408128053,0.002,28494.0,28493.0,0.3702]
[1680408128445,0.001,28494.0,28493.0,0.3722]
[1680408128951,0.002,28494.0,28493.0,0.3722]
[1680408131348,0.12828625,28494.0,28493.0,0.3722]
[1680408131548,0.002,28494.0,28493.0,0.3722]
[1680408139360,0.002,28494.0,28493.0,0.4222]
[1680408139659,0.002,28494.0,28493.0,0.3722]
[1680408143360,0.002,28494.0,28493.0,0.4917]
[1680408143557,0.002,28494.0,28493.0,0.632]
[1680408146962,0.002,28494.0,28493.0,0.4928]
[1680408154966,0.002,28494.0,28493.0,0.1921]
[1680408155167,0.002,28494.0,28493.0,0.7935]
[1680408161370,0.002,28494.0,28493.0,0.1921]
[1680408161569,0.002,28494.0,28493.0,0.7935]
[1680408170376,0.002,28494.0,28493.0,0.79342724]
[1680408180287,0.002,28494.0,28493.0,0.74342724]
[1680408180482,0.002,28494.0,28493.0,0.67282724]
[1680408180903,0.002,28494.0,28493.0,0.37212724]
[1680408189998,0.0717,28494.0,28493.0,0.00192724]
[1680408190198,0.05,28493.0,28491.0,0.0702]
[1680408190394,0.1197,28493.0,28491.0,0.0702]
[1680408190806,0.0697,28493.0,28491.0,0.0702]
[1680408191801,0.0717,28493.0,28491.0,0.0702]
[1680408192612,0.0717,28493.0,28492.0,0.3007]
[1680408192914,0.0717,28493.0,28492.0,0.3507]
[1680408197008,0.002,28493.0,28492.0,0.1202]
[1680408197213,0.002,28493.0,28492.0,0.3709]
[1680408200820,0.002,28493.0,28492.0,0.0702]
[1680408207019,0.0717,28493.0,28491.0,0.3707]
[1680408212718,0.0707,28493.0,28491.0,0.3707]
[1680408213117,0.0717,28493.0,28491.0,0.3707]
[1680408217026,0.0702,28492.0,28491.0,0.3007]
[1680408218626,0.0712,28492.0,28491.0,0.3007]
[1680408220728,0.001,28492.0,28491.0,0.3707]
[1680408223928,0.001,28492.0,28491.0,0.07]
[1680408224128,0.001,28492.0,28491.0,0.3707]
[1680408226937,0.071,28492.0,28491.0,0.3709]
[1680408234135,0.071,28492.0,28491.0,0.0702]
[1680408234334,0.071,28492.0,28491.0,0.3709]
[1680408244944,0.071,28492.0,28491.0,0.37080379]
[1680408246839,0.001,28492.0,28491.0,0.3709]
[1680408247045,0.0707,28492.0,28491.0,0.3709]
[1680408256854,0.071,28492.0,28491.0,0.3007]
[1680408258150,0.071,28492.0,28488.0,0.3709]
[1680408258356,0.0695,28490.0,28488.0,0.3709]
[1680408261658,0.0715,28490.0,28488.0,0.3709]
[1680408266960,0.0696,28489.0,28488.0,0.0702]
[1680408268859,0.59798625,28489.0,28486.0,0.3007]
[1680408269057,0.0697,28487.0,28484.0,0.07]
[1680408269357,0.1197,28486.0,28484.0,0.3707]
[1680408269861,0.0697,28486.0,28484.0,0.3707]
[1680408271361,0.0727,28486.0,28484.0,0.3707]
[1680408273456,0.0727,28486.0,28485.0,0.05]
[1680408276366,0.003,28486.0,28485.0,0.1201]
[1680408278366,0.0702,28488.0,28485.0,0.1201]
[1680408278565,0.003,28486.0,28485.0,0.05]
[1680408278768,0.003,28486.0,28485.0,0.1195]
[1680408278967,0.003,28486.0,28485.0,0.4202]
[1680408280964,0.003,28486.0,28485.0,0.1195]
[1680408281164,0.003,28486.0,28485.0,0.4202]
[1680408287373,0.002,28486.0,28485.0,0.4202]
[1680408289068,0.002,28486.0,28485.0,0.3702]
[1680408294682,0.002,28486.0,28485.0,0.0695]
[1680408298487,0.002,28486.0,28485.0,0.069398]
[1680408302790,0.0722,28486.0,28484.0,0.3007]
[1680408303091,0.0697,28485.0,28484.0,0.3007]
[1680408304092,0.0707,28485.0,28484.0,0.3007]
[1680408307095,0.0697,28485.0,28484.0,0.3007]
[1680408307393,0.0707,28485.0,28484.0,0.3007]
[1680408316895,0.071,28485.0,28484.0,0.3702]
[1680408319101,0.071,28485.0,28484.0,0.0695]
[1680408337013,0.0707,28485.0,28484.0,0.0696]
[1680408337220,0.0707,28485.0,28484.0,0.1196]
[1680408339116,0.0707,28485.0,28484.0,0.0696]
[1680408345135,0.071,28485.0,28481.0,0.0702]
[1680408345426,0.1197,28482.0,28481.0,0.0702]
[1680408345622,0.0697,28482.0,28481.0,0.0702]
[1680408347031,0.0697,28482.0,28480.0,0.3007]
[1680408347032,0.07,28482.0,28480.0,0.3007]
[1680408347323,0.0702,28481.0,28480.0,0.3007]
[1680408348427,0.0732,28481.0,28480.0,0.3007]
[1680408348830,0.0732,28481.0,28480.0,0.30058292]
[1680408356933,0.0727,28481.0,28480.0,0.37078292]
[1680408366738,0.0727,28481.0,28480.0,0.0702]
[1680408366933,0.0727,28481.0,28480.0,0.07]
[1680408367433,0.0727,28481.0,28477.0,0.0702]
[1680408367434,0.4441,28481.0,28477.0,0.0702]
[1680408367635,0.3007,28478.0,28477.0,0.0702]
[1680408368940,0.3037,28478.0,28477.0,0.0702]
[1680408372339,0.3027,28478.0,28477.0,0.0702]
[1680408377442,0.3723,28478.0,28477.0,0.0701]
[1680408382041,0.3703,28478.0,28477.0,0.0701]
[1680408382247,0.3723,28478.0,28477.0,0.0701]
[1680408383147,0.3703,28478.0,28477.0,0.0701]
[1680408383447,0.3723,28478.0,28477.0,0.0701]
[1680408386862,0.3729,28478.0,28475.0,0.0702]
[1680408387053,0.0697,28476.0,28475.0,0.0702]
[1680408389157,0.0727,28476.0,28475.0,0.0702]
[1680408393567,0.0717,28476.0,28475.0,0.0702]
[1680408393966,0.0717,28476.0,28475.0,0.07011052]
[1680408396867,0.0717,28476.0,28474.0,0.0696]
[1680408397166,0.0717,28476.0,28475.0,0.05]
[1680408402770,0.0717,28476.0,28474.0,0.1196]
[1680408405074,0.3724,28476.0,28474.0,0.1196]
[1680408406073,0.3724,28476.0,28474.0,0.0696]
[1680408406983,0.3723,28476.0,28475.0,0.0695]
[1680408409977,0.0716,28476.0,28475.0,0.0695]
[1680408410181,0.3723,28476.0,28475.0,0.0695]
[1680408411582,0.0716,28476.0,28475.0,0.0695]
[1680408416887,0.0722,28476.0,28475.0,0.0696]
[1680408426592,0.3729,28476.0,28475.0,0.0696]
[1680408436999,0.3729,28476.0,28473.0,0.05]
[1680408437000,0.3724,28476.0,28474.0,0.0702]
[1680408437205,0.0702,28475.0,28474.0,0.0702]
[1680408437600,0.0702,28475.0,28474.0,0.0696]
[1680408438407,0.0732,28475.0,28474.0,0.0696]
[1680408441318,0.0725,28475.0,28471.0,0.1202]
[1680408441605,0.1196,28472.0,28471.0,0.0702]
[1680408441809,0.0696,28472.0,28471.0,0.0702]
[1680408442920,0.0726,28472.0,28471.0,0.0702]
[1680408444315,0.0726,28472.0,28471.0,0.07001464]
[1680408447019,0.0732,28472.0,28470.0,0.0702]
[1680408447217,0.0732,28472.0,28470.0,0.1202]
[1680408447417,0.0732,28472.0,28470.0,0.0702]
[1680408447823,0.0702,28472.0,28470.0,0.0702]
[1680408448025,0.0732,28472.0,28470.0,0.0702]
[1680408452725,0.0696,28471.0,28468.0,0.0702]
[1680408452922,0.003,28472.0,28469.0,0.05]
[1680408453126,0.07,28470.0,28469.0,0.05]
[1680408454232,0.07,28470.0,28468.0,0.0702]
[1680408454529,0.0696,28469.0,28468.0,0.0702]
[1680408456827,0.0726,28469.0,28468.0,0.0702]
[1680408457029,0.0732,28469.0,28468.0,0.0701]
[1680408466944,0.0727,28469.0,28468.0,0.0701]
[1680408475551,0.0727,28469.0,28468.0,0.3708]
[1680408476158,0.003,28469.0,28468.0,0.3709]
[1680408477048,0.003,28469.0,28468.0,0.0702]
[1680408491773,0.003,28469.0,28468.0,0.06997459]
[1680408496878,0.0732,28469.0,28468.0,0.0696]
[1680408505783,0.003,28469.0,28468.0,0.0702]
[1680408536426,0.003,28469.0,28468.0,0.07006962]
[1680408555136,0.073,28469.0,28468.0,0.0696]
[1680408566934,0.0727,28469.0,28467.0,0.0702]
[1680408567134,0.0702,28468.0,28467.0,0.0702]
[1680408567645,0.3709,28468.0,28467.0,0.0702]
[1680408568343,0.3739,28468.0,28467.0,0.0702]
[1680408573656,0.3734,28468.0,28464.0,0.0695]
[1680408573861,0.3709,28465.0,28464.0,0.0695]
[1680408574755,0.3739,28465.0,28464.0,0.0695]
[1680408575857,0.0732,28465.0,28464.0,0.0695]
[1680408577065,0.003,28465.0,28464.0,0.0702]
[1680408587269,0.003,28465.0,28464.0,0.07003021]
[1680408588468,0.00277983,28465.0,28464.0,0.07003021]
[1680408606970,0.07247983,28465.0,28464.0,0.07003021]
[1680408616984,0.00277983,28465.0,28464.0,0.07003021]
[1680408623084,0.00277983,28465.0,28464.0,0.14023021]
[1680408626986,0.00277983,28465.0,28464.0,0.37073021]
[1680408629394,0.00277983,28465.0,28464.0,0.42073021]
[1680408635299,0.00277983,28465.0,28464.0,0.42056089]
[1680408636196,0.00277983,28465.0,28464.0,0.11986089]
[1680408636499,0.00277983,28465.0,28464.0,0.42056089]
[1680408637001,0.00277983,28465.0,28464.0,0.49056089]
[1680408637701,0.00277983,28465.0,28464.0,0.18986089]
[1680408637898,0.00277983,28465.0,28464.0,0.49056089]
[1680408638800,0.00277983,28465.0,28464.0,0.18986089]
[1680408639003,0.00277983,28465.0,28464.0,0.49056089]
[1680408643110,0.0697,28472.0,28465.0,0.05277]
[1680408643306,0.0697,28472.0,28471.0,0.0702]
[1680408645607,0.0727,28472.0,28471.0,0.0702]
[1680408646208,0.0727,28472.0,28471.0,0.0732]
[1680408646917,0.003,28472.0,28471.0,0.0731]
[1680408698252,0.003,28472.0,28471.0,0.1431]
[1680408698456,0.12628625,28474.0,28472.0,0.1904]
[1680408698751,0.12628625,28475.0,28473.0,0.1904]
[1680408698956,0.12628625,28475.0,28474.0,0.1201]
[1680408699257,0.12628625,28475.0,28474.0,0.4208]
[1680408700249,0.12628625,28476.0,28474.0,0.4208]
[1680408700455,0.12628625,28476.0,28475.0,0.1202]
[1680408701451,0.12828625,28476.0,28475.0,0.1262]
[1680408701850,0.12828625,28476.0,28475.0,0.1962]
[1680408702258,0.002,28476.0,28475.0,0.1962]
[1680408702460,0.002,28476.0,28475.0,0.4969]
[1680408708157,0.002,28476.0,28475.0,0.4962]
[1680408716863,0.002,28476.0,28475.0,0.4963]
[1680408728075,0.002,28476.0,28475.0,0.1956]
[1680408728269,0.002,28476.0,28475.0,0.4963]
[1680408728875,0.002,28476.0,28475.0,0.076]
[1680408733865,0.0702,28477.0,28475.0,0.098]
[1680408734177,0.001,28476.0,28475.0,0.028]
[1680408734476,0.001,28476.0,28475.0,0.0982]
[1680408736771,0.0707,28476.0,28475.0,0.028]
[1680408742489,0.0707,28476.0,28475.0,0.02787045]
[1680408747082,0.001,28476.0,28475.0,0.09787045]
[1680408756891,0.0707,28476.0,28475.0,0.09807045]
[1680408767002,0.0707,28476.0,28475.0,0.02787045]
[1680408767207,0.0707,28476.0,28475.0,0.09787045]
[1680408776916,0.0707,28476.0,28475.0,0.02787045]
[1680408781523,0.0705491,28476.0,28475.0,0.02787045]
[1680408791732,0.0008491,28476.0,28475.0,0.09737045]
[1680408809040,0.0008491,28476.0,28475.0,0.14737045]
[1680408809244,0.0008491,28476.0,28475.0,0.09737045]
[1680408810441,0.0008491,28476.0,28475.0,0.14737045]
[1680408812849,0.0008491,28476.0,28475.0,0.44807045]
[1680408814947,0.12628625,28479.0,28476.0,0.05]
[1680408815244,0.12628625,28480.0,28479.0,0.05]
[1680408815447,0.12628625,28480.0,28479.0,0.1201]
[1680408815844,0.19598625,28481.0,28479.0,0.1201]
[1680408816044,0.19598625,28481.0,28480.0,0.05]
[1680408816954,0.12628625,28481.0,28480.0,0.1196]
[1680408817247,0.12628625,28481.0,28480.0,0.1226]
[1680408818452,0.12728625,28481.0,28480.0,0.0856]
[1680408820051,0.19698625,28481.0,28480.0,0.016]
[1680408820249,0.1207,28481.0,28480.0,0.016]
[1680408820550,0.2469245,28481.0,28480.0,0.016]
[1680408820954,0.3171245,28481.0,28480.0,0.016]
[1680408821266,0.2671245,28481.0,28480.0,0.016]
[1680408821854,0.1409,28481.0,28480.0,0.016]
[1680408822049,0.31711117,28481.0,28480.0,0.016]
[1680408822446,0.26711117,28481.0,28480.0,0.016]
[1680408823156,0.31711117,28481.0,28480.0,0.016]
[1680408823355,0.26711117,28481.0,28480.0,0.016]
[1680408826857,0.26751117,28481.0,28480.0,0.016]
[1680408828560,0.19741117,28481.0,28480.0,0.016]
[1680408831958,0.0712,28481.0,28480.0,0.016]
[1680408832659,0.1974132,28481.0,28480.0,0.016]
[1680408833161,0.0712,28481.0,28480.0,0.016]
[1680408836958,0.1414,28481.0,28480.0,0.016]
[1680408843871,0.4421,28481.0,28480.0,0.016]
[1680408847570,0.1414,28481.0,28480.0,0.016]
[1680408847766,0.4421,28481.0,28480.0,0.016]
[1680408848776,0.1414,28481.0,28480.0,0.016]